[Event "Live Chess"]
[Site "Chess.com"]
[Date "2023.05.21"]
[Round "-"]
[White "Duke_of_Bebington"]
[Black "wot-not"]
[Result "0-1"]
[WhiteElo "1564"]
[BlackElo "1549"]
[TimeControl "300"]
[EndTime "6:24:20 PDT"]
[Termination "wot-not won by checkmate"]

1. e4 {[%clk 0:04:57.5]} 1... e6 {[%clk 0:04:57.2]} 2. d4 {[%clk 0:04:55.9]}
2... d5 {[%clk 0:04:55.6]} 3. Nd2 {[%clk 0:04:55.5]} 3... Nc6 {[%clk 0:04:53.6]}
4. c3 {[%clk 0:04:52.7]} 4... e5 {[%clk 0:04:50.3]} 5. dxe5 {[%clk 0:04:42.1]}
5... Nxe5 {[%clk 0:04:40.2]} 6. exd5 {[%clk 0:04:37.4]} 6... Qxd5 {[%clk
0:04:01.4]} 7. Be2 {[%clk 0:04:31.6]} 7... Qxg2 {[%clk 0:03:48.3]} 8. Bf3 {[%clk
0:04:21.6]} 8... Nxf3+ {[%clk 0:03:46.8]} 9. Qxf3 {[%clk 0:04:20.4]} 9... Qxf3
{[%clk 0:03:45.7]} 10. Ndxf3 {[%clk 0:04:18.7]} 10... Be6 {[%clk 0:03:38.2]} 11.
Be3 {[%clk 0:04:16.2]} 11... O-O-O {[%clk 0:03:35.9]} 12. Ne2 {[%clk 0:04:15]}
12... Nf6 {[%clk 0:03:31]} 13. Ned4 {[%clk 0:04:09.1]} 13... Ng4 {[%clk
0:03:20.9]} 14. O-O-O {[%clk 0:04:01.9]} 14... Nxe3 {[%clk 0:03:18.7]} 15. fxe3
{[%clk 0:04:01.8]} 15... Bg4 {[%clk 0:03:13.3]} 16. Rdf1 {[%clk 0:03:58.1]}
16... Bxf3 {[%clk 0:03:11.7]} 17. Rxf3 {[%clk 0:03:56.9]} 17... f6 {[%clk
0:03:06]} 18. Rg1 {[%clk 0:03:52.1]} 18... Rg8 {[%clk 0:03:02]} 19. Rfg3 {[%clk
0:03:43.3]} 19... g5 {[%clk 0:02:50.4]} 20. Nf5 {[%clk 0:03:34.8]} 20... Bd6
{[%clk 0:02:43.9]} 21. Nxd6+ {[%clk 0:03:32.6]} 21... Rxd6 {[%clk 0:02:42]} 22.
h4 {[%clk 0:03:32]} 22... h6 {[%clk 0:02:37.6]} 23. hxg5 {[%clk 0:03:31]} 23...
fxg5 {[%clk 0:02:36]} 24. e4 {[%clk 0:03:30.5]} 24... Re8 {[%clk 0:02:32.4]} 25.
Re3 {[%clk 0:03:27.5]} 25... Rde6 {[%clk 0:02:28.8]} 26. Rge1 {[%clk 0:03:24.2]}
26... Kd7 {[%clk 0:02:26.4]} 27. Kd2 {[%clk 0:03:23.6]} 27... Kc6 {[%clk
0:02:25.5]} 28. Kd3 {[%clk 0:03:22.8]} 28... Rd8+ {[%clk 0:02:22.7]} 29. Kc4
{[%clk 0:03:21.3]} 29... Rd2 {[%clk 0:02:18.7]} 30. Kb3 {[%clk 0:03:16.5]} 30...
Kc5 {[%clk 0:02:02.8]} 31. Rh3 {[%clk 0:03:05.8]} 31... Rb6+ {[%clk 0:02:00.9]}
32. Ka3 {[%clk 0:03:03.8]} 32... Rdxb2 {[%clk 0:02:00]} 33. e5 {[%clk
0:02:59.9]} 33... R2b5 {[%clk 0:01:57]} 34. Re4 {[%clk 0:02:56.2]} 34... Ra5+
{[%clk 0:01:40.5]} 35. Ra4 {[%clk 0:02:54.3]} 35... Rxa4+ {[%clk 0:01:39.1]} 36.
Kxa4 {[%clk 0:02:54.2]} 36... Kd5 {[%clk 0:01:38.6]} 37. Re3 {[%clk 0:02:50.1]}
37... Ke6 {[%clk 0:01:35.8]} 38. a3 {[%clk 0:02:47.9]} 38... Rc6 {[%clk
0:01:30.9]} 39. Kb3 {[%clk 0:02:46]} 39... Rc5 {[%clk 0:01:29.9]} 40. Rh3 {[%clk
0:02:40.6]} 40... Kxe5 {[%clk 0:01:19.9]} 41. Rxh6 {[%clk 0:02:39.4]} 41... Kf4
{[%clk 0:01:15.8]} 42. Rg6 {[%clk 0:02:35.5]} 42... g4 {[%clk 0:01:14.8]} 43.
Rf6+ {[%clk 0:02:33]} 43... Ke3 {[%clk 0:01:05.9]} 44. Rg6 {[%clk 0:02:26.6]}
44... Kf3 {[%clk 0:01:04.1]} 45. Rf6+ {[%clk 0:02:25.4]} 45... Kg2 {[%clk
0:01:02]} 46. Rg6 {[%clk 0:02:22.7]} 46... g3 {[%clk 0:01:01.3]} 47. Kc2 {[%clk
0:02:21.5]} 47... Rd5 {[%clk 0:00:56.1]} 48. c4 {[%clk 0:02:18.4]} 48... Rd4
{[%clk 0:00:52.9]} 49. Kc3 {[%clk 0:02:17]} 49... c5 {[%clk 0:00:51.8]} 50. a4
{[%clk 0:02:11.2]} 50... Kf2 {[%clk 0:00:48.1]} 51. Rf6+ {[%clk 0:02:10.2]}
51... Kg1 {[%clk 0:00:47.3]} 52. Rf7 {[%clk 0:02:08.5]} 52... g2 {[%clk
0:00:45.4]} 53. Rxb7 {[%clk 0:02:06.6]} 53... Kf1 {[%clk 0:00:44.5]} 54. Rf7+
{[%clk 0:02:05.4]} 54... Ke1 {[%clk 0:00:43.7]} 55. Re7+ {[%clk 0:02:04.3]}
55... Kd1 {[%clk 0:00:42.9]} 56. Rg7 {[%clk 0:02:02.8]} 56... Rd2 {[%clk
0:00:35.7]} 57. a5 {[%clk 0:01:56]} 57... Rf2 {[%clk 0:00:28.5]} 58. Rd7+ {[%clk
0:01:50.6]} 58... Ke1 {[%clk 0:00:27.9]} 59. Re7+ {[%clk 0:01:49.7]} 59... Kf1
{[%clk 0:00:27.4]} 60. Rxa7 {[%clk 0:01:44]} 60... g1=Q {[%clk 0:00:26.4]} 61.
Rc7 {[%clk 0:01:42.1]} 61... Qg3# {[%clk 0:00:25.4]} 0-1

[Event "Live Chess"]
[Site "Chess.com"]
[Date "2023.05.21"]
[Round "-"]
[White "WelshTiger"]
[Black "davigator"]
[Result "1-0"]
[WhiteElo "2320"]
[BlackElo "2305"]
[TimeControl "300"]
[EndTime "6:24:29 PDT"]
[Termination "WelshTiger won by resignation"]

1. e4 {[%clk 0:04:50]} 1... c5 {[%clk 0:04:58.2]} 2. Nf3 {[%clk 0:04:48.8]} 2...
Nc6 {[%clk 0:04:55.2]} 3. Bb5 {[%clk 0:04:47.5]} 3... g6 {[%clk 0:04:53.4]} 4.
O-O {[%clk 0:04:45.6]} 4... Bg7 {[%clk 0:04:52.2]} 5. c3 {[%clk 0:04:44.3]} 5...
Nf6 {[%clk 0:04:50]} 6. Qa4 {[%clk 0:04:42.5]} 6... O-O {[%clk 0:04:47.5]} 7. d4
{[%clk 0:04:41.7]} 7... cxd4 {[%clk 0:04:43.5]} 8. cxd4 {[%clk 0:04:41.6]} 8...
d5 {[%clk 0:04:41.6]} 9. e5 {[%clk 0:04:39.8]} 9... Ne4 {[%clk 0:04:40.7]} 10.
Bxc6 {[%clk 0:04:39]} 10... bxc6 {[%clk 0:04:39.7]} 11. Qxc6 {[%clk 0:04:38.6]}
11... Bg4 {[%clk 0:04:38.8]} 12. Nc3 {[%clk 0:04:30]} 12... Bxf3 {[%clk
0:04:34.7]} 13. gxf3 {[%clk 0:04:27.9]} 13... Nxc3 {[%clk 0:04:33.8]} 14. Qxc3
{[%clk 0:04:26.1]} 14... e6 {[%clk 0:04:31.5]} 15. Be3 {[%clk 0:04:13.1]} 15...
Qb6 {[%clk 0:04:21.5]} 16. Rfc1 {[%clk 0:04:06.8]} 16... Rab8 {[%clk 0:04:20.4]}
17. b3 {[%clk 0:04:05.6]} 17... f6 {[%clk 0:04:16.9]} 18. f4 {[%clk 0:04:03.6]}
18... f5 {[%clk 0:04:12.6]} 19. Qc5 {[%clk 0:03:58.6]} 19... Qa6 {[%clk
0:04:08.2]} 20. Qc3 {[%clk 0:03:48.5]} 20... Rf7 {[%clk 0:04:05.4]} 21. Qd2
{[%clk 0:03:46.9]} 21... Bf8 {[%clk 0:04:04.2]} 22. Rc2 {[%clk 0:03:41.4]} 22...
Rxb3 {[%clk 0:04:00.9]} 23. axb3 {[%clk 0:03:35.7]} 23... Qxa1+ {[%clk
0:03:59.5]} 24. Kg2 {[%clk 0:03:35.4]} 24... Qa6 {[%clk 0:03:57.3]} 25. Ra2
{[%clk 0:03:33.9]} 25... Qb5 {[%clk 0:03:55.8]} 26. Qc2 {[%clk 0:03:32.3]} 26...
Rb7 {[%clk 0:03:53.3]} 27. h4 {[%clk 0:03:28.9]} 27... h5 {[%clk 0:03:47.2]} 28.
Qc8 {[%clk 0:03:19.8]} 28... Kf7 {[%clk 0:03:45.4]} 29. Rc2 {[%clk 0:03:12.3]}
29... Qd7 {[%clk 0:03:42.9]} 30. Qa8 {[%clk 0:03:09.8]} 30... Rxb3 {[%clk
0:03:36.7]} 31. Rc8 {[%clk 0:03:08.9]} 31... Bg7 {[%clk 0:03:35.6]} 32. Rg8
{[%clk 0:02:52.9]} 32... a5 {[%clk 0:03:20]} 33. Rd8 {[%clk 0:02:41.4]} 33...
Qc7 {[%clk 0:03:18.2]} 34. Rd6 {[%clk 0:02:36.7]} 34... Rb7 {[%clk 0:03:09.2]}
35. Ra6 {[%clk 0:02:29.3]} 35... Rb8 {[%clk 0:02:59.1]} 36. Qa7 {[%clk
0:02:22.5]} 36... Rb7 {[%clk 0:02:55.7]} 37. Qc5 {[%clk 0:02:17.5]} 37... Bf8
{[%clk 0:02:45.3]} 38. Qxa5 {[%clk 0:02:10.1]} 38... Qxa5 {[%clk 0:02:44.4]} 39.
Rxa5 {[%clk 0:02:10]} 39... Be7 {[%clk 0:02:42.9]} 40. Ra6 {[%clk 0:02:09.1]}
40... Bxh4 {[%clk 0:02:41]} 41. Rc6 {[%clk 0:02:05.5]} 41... Be7 {[%clk
0:02:38.1]} 42. Bd2 {[%clk 0:02:04.1]} 42... Rb2 {[%clk 0:02:34.8]} 43. Ba5
{[%clk 0:01:58.8]} 43... g5 {[%clk 0:02:23.6]} 44. fxg5 {[%clk 0:01:56.7]} 44...
Bxg5 {[%clk 0:02:20.7]} 45. Rc7+ {[%clk 0:01:48.1]} 45... Kg6 {[%clk 0:02:17.3]}
46. Rc6 {[%clk 0:01:47.4]} 46... Be3 {[%clk 0:02:15.1]} 47. Rxe6+ {[%clk
0:01:45.7]} 47... Kg5 {[%clk 0:02:12.9]} 48. Bd8+ {[%clk 0:01:44.4]} 48... Kf4
{[%clk 0:02:11.5]} 49. Rg6 {[%clk 0:01:36.1]} 49... Rxf2+ {[%clk 0:02:10.3]} 50.
Kh3 {[%clk 0:01:35.1]} 50... Bxd4 {[%clk 0:02:09.7]} 51. e6 {[%clk 0:01:34]}
51... Re2 {[%clk 0:02:07.1]} 52. Bc7+ {[%clk 0:01:26.5]} 52... Ke4 {[%clk
0:02:01.5]} 53. e7 {[%clk 0:01:23.1]} 53... Kd3 {[%clk 0:02:01]} 54. Bd6 {[%clk
0:01:19.2]} 54... f4 {[%clk 0:01:54.1]} 55. Rg8 {[%clk 0:01:17.8]} 55... f3
{[%clk 0:01:52.1]} 56. e8=Q {[%clk 0:01:14.7]} 56... f2 {[%clk 0:01:48.6]} 57.
Qb5+ {[%clk 0:01:10.3]} 57... Kd2 {[%clk 0:01:46.9]} 58. Bb4+ {[%clk 0:01:07]}
58... Kd1 {[%clk 0:01:42.5]} 59. Qd3+ {[%clk 0:01:05.3]} 59... Kc1 {[%clk
0:01:39.4]} 60. Qxe2 {[%clk 0:01:04.5]} 1-0

[Event "Live Chess"]
[Site "Chess.com"]
[Date "2023.05.21"]
[Round "-"]
[White "TheSmoulderingMaster"]
[Black "GEMdzq"]
[Result "0-1"]
[WhiteElo "1653"]
[BlackElo "2259"]
[TimeControl "300"]
[EndTime "6:24:36 PDT"]
[Termination "GEMdzq won by resignation"]

1. e4 {[%clk 0:04:57.4]} 1... d6 {[%clk 0:04:59.2]} 2. d4 {[%clk 0:04:53.1]}
2... Nf6 {[%clk 0:04:58.8]} 3. Nc3 {[%clk 0:04:51.7]} 3... g6 {[%clk 0:04:58.4]}
4. Bf4 {[%clk 0:04:47.6]} 4... Bg7 {[%clk 0:04:55.2]} 5. Nf3 {[%clk 0:04:46.5]}
5... c6 {[%clk 0:04:48.2]} 6. Qd2 {[%clk 0:04:44.8]} 6... b5 {[%clk 0:04:46]} 7.
O-O-O {[%clk 0:04:42.8]} 7... b4 {[%clk 0:04:36.9]} 8. Nb1 {[%clk 0:04:41.7]}
8... Nxe4 {[%clk 0:04:34.3]} 9. Qxb4 {[%clk 0:04:40.6]} 9... O-O {[%clk
0:04:15.7]} 10. Bg3 {[%clk 0:04:37]} 10... Na6 {[%clk 0:04:09.1]} 11. Qa4 {[%clk
0:04:29.9]} 11... Nc7 {[%clk 0:04:02.1]} 12. Bd3 {[%clk 0:04:20.9]} 12... Nxg3
{[%clk 0:03:52.2]} 13. hxg3 {[%clk 0:04:19]} 13... Bd7 {[%clk 0:03:51.3]} 14. d5
{[%clk 0:04:03.8]} 14... cxd5 {[%clk 0:03:45.2]} 15. Qh4 {[%clk 0:04:03]} 15...
h6 {[%clk 0:03:43.9]} 16. Ng5 {[%clk 0:03:53.2]} 16... e5 {[%clk 0:03:37.8]} 17.
f4 {[%clk 0:03:35.6]} 17... Rb8 {[%clk 0:03:35.5]} 18. Rh2 {[%clk 0:02:59.9]}
18... e4 {[%clk 0:03:08.5]} 19. Be2 {[%clk 0:02:57.2]} 19... Bxb2+ {[%clk
0:03:05.7]} 20. Kd2 {[%clk 0:02:55.2]} 20... Nb5 {[%clk 0:02:44.6]} 21. Qxh6
{[%clk 0:02:48.7]} 21... Qa5+ {[%clk 0:02:40]} 22. c3 {[%clk 0:02:41.8]} 22...
Bxc3+ {[%clk 0:02:37.9]} 23. Kc2 {[%clk 0:02:22.2]} 23... Qxa2+ {[%clk
0:02:35.5]} 0-1

[Event "Live Chess"]
[Site "Chess.com"]
[Date "2023.05.21"]
[Round "-"]
[White "ChessClubLive"]
[Black "gmnorfolk"]
[Result "0-1"]
[WhiteElo "1699"]
[BlackElo "2131"]
[TimeControl "300"]
[EndTime "6:24:56 PDT"]
[Termination "gmnorfolk won by resignation"]

1. e4 {[%clk 0:04:58.7]} 1... c5 {[%clk 0:04:58]} 2. Nf3 {[%clk 0:04:55.3]} 2...
d6 {[%clk 0:04:56.7]} 3. d4 {[%clk 0:04:51.1]} 3... cxd4 {[%clk 0:04:55.8]} 4.
c3 {[%clk 0:04:50]} 4... Nf6 {[%clk 0:04:55]} 5. Bc4 {[%clk 0:04:44]} 5... e6
{[%clk 0:04:48.5]} 6. O-O {[%clk 0:04:41.2]} 6... Be7 {[%clk 0:04:45.9]} 7. Qe2
{[%clk 0:04:37.4]} 7... dxc3 {[%clk 0:04:44]} 8. Nxc3 {[%clk 0:04:36.1]} 8...
O-O {[%clk 0:04:43.5]} 9. Rd1 {[%clk 0:04:34.6]} 9... Bd7 {[%clk 0:04:41.2]} 10.
Bf4 {[%clk 0:04:28.7]} 10... e5 {[%clk 0:04:39.7]} 11. Bg3 {[%clk 0:04:18.7]}
11... Nc6 {[%clk 0:04:38.5]} 12. Rac1 {[%clk 0:04:15.9]} 12... Bg4 {[%clk
0:04:34.1]} 13. h3 {[%clk 0:04:13.7]} 13... Nd4 {[%clk 0:04:32.5]} 14. Rxd4
{[%clk 0:04:00]} 14... Bxf3 {[%clk 0:04:31.2]} 15. Rxd6 {[%clk 0:03:43.4]} 15...
Bxe2 {[%clk 0:04:25.6]} 16. Rxd8 {[%clk 0:03:40.7]} 16... Rfxd8 {[%clk
0:04:25.5]} 17. Nxe2 {[%clk 0:03:39.5]} 17... Rd2 {[%clk 0:04:24.8]} 18. Bxe5
{[%clk 0:03:30.1]} 18... Nxe4 {[%clk 0:04:20.9]} 19. f3 {[%clk 0:02:12.7]} 19...
Nf6 {[%clk 0:04:14.5]} 20. Bc3 {[%clk 0:02:00.6]} 20... Rdd8 {[%clk 0:04:09.4]}
21. Nd4 {[%clk 0:01:45.9]} 21... Nd5 {[%clk 0:04:05]} 22. Be1 {[%clk 0:01:19.8]}
22... Nb6 {[%clk 0:03:58.9]} 23. Nf5 {[%clk 0:01:11.1]} 23... Bf8 {[%clk
0:03:56.7]} 24. Bh4 {[%clk 0:00:49.5]} 24... Rdc8 {[%clk 0:03:49.5]} 0-1

[Event "Live Chess"]
[Site "Chess.com"]
[Date "2023.05.21"]
[Round "-"]
[White "EdenHazard8"]
[Black "garyjc"]
[Result "1-0"]
[WhiteElo "1968"]
[BlackElo "1035"]
[TimeControl "300"]
[EndTime "6:25:09 PDT"]
[Termination "EdenHazard8 won by resignation"]

1. e4 {[%clk 0:04:59.1]} 1... c5 {[%clk 0:04:57.9]} 2. Nc3 {[%clk 0:04:58.2]}
2... d6 {[%clk 0:04:55.9]} 3. f4 {[%clk 0:04:58.1]} 3... Nc6 {[%clk 0:04:51.3]}
4. Nf3 {[%clk 0:04:58]} 4... e6 {[%clk 0:04:37.3]} 5. Bb5 {[%clk 0:04:55.5]}
5... a6 {[%clk 0:04:34.8]} 6. Bxc6+ {[%clk 0:04:54.3]} 6... bxc6 {[%clk
0:04:33.9]} 7. d3 {[%clk 0:04:54.1]} 7... g6 {[%clk 0:04:10.9]} 8. O-O {[%clk
0:04:54]} 8... Bg7 {[%clk 0:04:10]} 9. Qe1 {[%clk 0:04:53.2]} 9... Nf6 {[%clk
0:04:09]} 10. Qh4 {[%clk 0:04:52.3]} 10... O-O {[%clk 0:04:06.4]} 11. f5 {[%clk
0:04:50.9]} 11... exf5 {[%clk 0:04:04.3]} 12. Bh6 {[%clk 0:04:50.5]} 12... Qb6
{[%clk 0:03:42.8]} 13. Ng5 {[%clk 0:04:46.5]} 13... Bxh6 {[%clk 0:03:34.4]} 14.
Qxh6 {[%clk 0:04:45.1]} 14... c4+ {[%clk 0:03:22.2]} 15. Kh1 {[%clk 0:04:43.6]}
15... cxd3 {[%clk 0:03:21]} 16. cxd3 {[%clk 0:04:42.5]} 16... Qxb2 {[%clk
0:03:18.7]} 17. Rac1 {[%clk 0:04:40.4]} 17... Qb6 {[%clk 0:02:53]} 18. e5 {[%clk
0:04:37.8]} 18... dxe5 {[%clk 0:02:49]} 19. Nce4 {[%clk 0:04:36.7]} 19... fxe4
{[%clk 0:02:09]} 20. Rxf6 {[%clk 0:04:33.8]} 1-0

[Event "Live Chess"]
[Site "Chess.com"]
[Date "2023.05.21"]
[Round "-"]
[White "whatnot126"]
[Black "Biranidun"]
[Result "0-1"]
[WhiteElo "2064"]
[BlackElo "2530"]
[TimeControl "300"]
[EndTime "6:25:12 PDT"]
[Termination "Biranidun won by resignation"]

1. e4 {[%clk 0:04:59]} 1... c5 {[%clk 0:04:58.9]} 2. c3 {[%clk 0:04:58.3]} 2...
Nf6 {[%clk 0:04:57.1]} 3. e5 {[%clk 0:04:57.3]} 3... Nd5 {[%clk 0:04:56.4]} 4.
d4 {[%clk 0:04:57.2]} 4... cxd4 {[%clk 0:04:56.3]} 5. cxd4 {[%clk 0:04:56.7]}
5... d6 {[%clk 0:04:56]} 6. exd6 {[%clk 0:04:55.5]} 6... Qxd6 {[%clk 0:04:54.8]}
7. Nf3 {[%clk 0:04:54.8]} 7... Nc6 {[%clk 0:04:54.4]} 8. Nc3 {[%clk 0:04:53.6]}
8... Bg4 {[%clk 0:04:53.7]} 9. Bc4 {[%clk 0:04:50.7]} 9... e6 {[%clk 0:04:50.8]}
10. O-O {[%clk 0:04:48.7]} 10... Nb6 {[%clk 0:04:47.6]} 11. Bb5 {[%clk
0:04:42.3]} 11... Be7 {[%clk 0:04:40.9]} 12. Be3 {[%clk 0:04:38.2]} 12... O-O
{[%clk 0:04:39.3]} 13. h3 {[%clk 0:04:37.4]} 13... Bh5 {[%clk 0:04:37.9]} 14.
Bxc6 {[%clk 0:04:23.7]} 14... bxc6 {[%clk 0:04:28.1]} 15. Qe2 {[%clk 0:04:21.4]}
15... Rab8 {[%clk 0:04:21.6]} 16. b3 {[%clk 0:03:48.8]} 16... Nd5 {[%clk
0:04:19.1]} 17. Ne4 {[%clk 0:03:47.1]} 17... Qb4 {[%clk 0:04:16]} 18. Rfc1
{[%clk 0:03:34.3]} 18... Rfc8 {[%clk 0:04:01.8]} 19. Rc4 {[%clk 0:03:32.6]}
19... Qb5 {[%clk 0:03:59.6]} 20. Rac1 {[%clk 0:03:29]} 20... Nb6 {[%clk
0:03:55.9]} 21. R4c2 {[%clk 0:03:07.4]} 21... Qxe2 {[%clk 0:03:54.5]} 22. Rxe2
{[%clk 0:03:07.3]} 22... Bxf3 {[%clk 0:03:53.9]} 23. gxf3 {[%clk 0:03:06.9]}
23... Nd5 {[%clk 0:03:53]} 24. Rec2 {[%clk 0:03:02.9]} 24... Ba3 {[%clk
0:03:51.8]} 25. Rd1 {[%clk 0:02:57.2]} 25... Kf8 {[%clk 0:03:48]} 26. Rc4 {[%clk
0:02:52.2]} 26... Rb4 {[%clk 0:03:26.4]} 27. Rc5 {[%clk 0:02:39.3]} 27... Rb5
{[%clk 0:03:20.2]} 28. Rc4 {[%clk 0:02:38]} 28... Nb6 {[%clk 0:03:08.1]} 29. Rc2
{[%clk 0:02:34.2]} 29... Ke7 {[%clk 0:03:07]} 30. Nc3 {[%clk 0:02:16.7]} 30...
Rf5 {[%clk 0:03:04.4]} 31. Kg2 {[%clk 0:02:15]} 31... Kd7 {[%clk 0:03:01.5]} 32.
Ne4 {[%clk 0:02:10.4]} 32... a5 {[%clk 0:02:56.1]} 33. Nc5+ {[%clk 0:02:07.1]}
33... Bxc5 {[%clk 0:02:54]} 34. Rxc5 {[%clk 0:02:03.3]} 34... Rxc5 {[%clk
0:02:53]} 35. dxc5+ {[%clk 0:02:03.2]} 35... Nd5 {[%clk 0:02:52.4]} 36. Rd4
{[%clk 0:02:01.1]} 36... Rb8 {[%clk 0:02:42.6]} 37. Bd2 {[%clk 0:01:59.1]} 37...
Rb5 {[%clk 0:02:41.3]} 38. Ra4 {[%clk 0:01:58]} 38... Rxc5 {[%clk 0:02:40.4]}
39. Rxa5 {[%clk 0:01:55.2]} 39... Rc2 {[%clk 0:02:38]} 40. Bg5 {[%clk
0:01:47.5]} 40... f6 {[%clk 0:02:35.1]} 41. Bh4 {[%clk 0:01:46.1]} 41... g5
{[%clk 0:01:45.8]} 42. Bg3 {[%clk 0:01:44.9]} 42... e5 {[%clk 0:01:44.8]} 43.
Ra7+ {[%clk 0:01:34.7]} 43... Nc7 {[%clk 0:01:39.2]} 44. h4 {[%clk 0:01:32.3]}
44... h6 {[%clk 0:01:37.8]} 45. Kh3 {[%clk 0:01:25]} 45... Kd6 {[%clk
0:01:29.8]} 46. Kg4 {[%clk 0:01:21.3]} 46... Rc3 {[%clk 0:01:25.6]} 47. Kh5
{[%clk 0:01:13.6]} 47... Rxf3 {[%clk 0:01:22.2]} 48. Kxh6 {[%clk 0:01:12.7]}
48... gxh4 {[%clk 0:01:21.5]} 49. Bxh4 {[%clk 0:01:12.6]} 49... Nd5 {[%clk
0:01:14.8]} 50. Rb7 {[%clk 0:01:01.3]} 50... Ke6 {[%clk 0:01:05.4]} 51. Kh5
{[%clk 0:00:59.3]} 51... Kf5 {[%clk 0:01:03.9]} 52. Rf7 {[%clk 0:00:54.2]} 52...
Rh3 {[%clk 0:01:01.4]} 53. Kh6 {[%clk 0:00:41.3]} 53... Rxh4+ {[%clk 0:00:59.5]}
54. Kg7 {[%clk 0:00:40.9]} 54... Rh2 {[%clk 0:00:58]} 55. a4 {[%clk 0:00:38.2]}
55... Rxf2 {[%clk 0:00:57.2]} 56. a5 {[%clk 0:00:37.6]} 56... Ra2 {[%clk
0:00:56.4]} 57. Ra7 {[%clk 0:00:37.2]} 57... e4 {[%clk 0:00:55.3]} 58. Kf7
{[%clk 0:00:34.5]} 58... e3 {[%clk 0:00:54.5]} 59. Ra8 {[%clk 0:00:32.7]} 59...
e2 {[%clk 0:00:53.5]} 60. Re8 {[%clk 0:00:30.6]} 60... Nf4 {[%clk 0:00:45.1]}
61. Rc8 {[%clk 0:00:25.2]} 61... e1=Q {[%clk 0:00:43.5]} 0-1

[Event "Live Chess"]
[Site "Chess.com"]
[Date "2023.05.21"]
[Round "-"]
[White "elizaveta_frundina"]
[Black "SupremeTactician"]
[Result "0-1"]
[WhiteElo "1581"]
[BlackElo "2232"]
[TimeControl "300"]
[EndTime "6:25:22 PDT"]
[Termination "SupremeTactician won on time"]

1. e4 {[%clk 0:04:57.8]} 1... e5 {[%clk 0:04:56.8]} 2. Nf3 {[%clk 0:04:56.5]}
2... Nc6 {[%clk 0:04:53.6]} 3. d4 {[%clk 0:04:55.4]} 3... exd4 {[%clk
0:04:51.8]} 4. Nxd4 {[%clk 0:04:54.7]} 4... Nf6 {[%clk 0:04:51.4]} 5. Nc3 {[%clk
0:04:52.3]} 5... Bb4 {[%clk 0:04:48.4]} 6. Nxc6 {[%clk 0:04:51.4]} 6... bxc6
{[%clk 0:04:48.3]} 7. Bd3 {[%clk 0:04:50.3]} 7... d5 {[%clk 0:04:45.6]} 8. exd5
{[%clk 0:04:49]} 8... cxd5 {[%clk 0:04:45.5]} 9. O-O {[%clk 0:04:47.4]} 9... O-O
{[%clk 0:04:43.3]} 10. Bg5 {[%clk 0:04:43.9]} 10... c6 {[%clk 0:04:41.9]} 11.
Ne2 {[%clk 0:04:32]} 11... Be7 {[%clk 0:04:37.2]} 12. Ng3 {[%clk 0:04:25.9]}
12... h6 {[%clk 0:04:30.9]} 13. Bf4 {[%clk 0:04:17.6]} 13... Bd6 {[%clk
0:04:22.9]} 14. Qf3 {[%clk 0:04:00.8]} 14... Bxf4 {[%clk 0:04:18.1]} 15. Qxf4
{[%clk 0:03:59.4]} 15... Be6 {[%clk 0:04:16.9]} 16. Nf5 {[%clk 0:03:50.5]} 16...
Bxf5 {[%clk 0:04:09.6]} 17. Qxf5 {[%clk 0:03:44]} 17... Qd7 {[%clk 0:04:06.2]}
18. Qxd7 {[%clk 0:03:33.1]} 18... Nxd7 {[%clk 0:04:00]} 19. Rfe1 {[%clk
0:03:30.9]} 19... Rfe8 {[%clk 0:03:55]} 20. h3 {[%clk 0:03:26.1]} 20... Nc5
{[%clk 0:03:50.3]} 21. Bf5 {[%clk 0:03:15.3]} 21... g6 {[%clk 0:03:42.5]} 22.
Bg4 {[%clk 0:03:12.7]} 22... h5 {[%clk 0:03:39.2]} 23. Bf3 {[%clk 0:03:11]}
23... Kg7 {[%clk 0:03:28.6]} 24. c4 {[%clk 0:03:08.8]} 24... Ne4 {[%clk
0:03:20.1]} 25. cxd5 {[%clk 0:03:03]} 25... cxd5 {[%clk 0:03:20]} 26. Rad1
{[%clk 0:02:52.3]} 26... Rad8 {[%clk 0:03:12.6]} 27. Bxe4 {[%clk 0:02:47.9]}
27... dxe4 {[%clk 0:03:12.5]} 28. Rxd8 {[%clk 0:02:46.1]} 28... Rxd8 {[%clk
0:03:11.8]} 29. Rxe4 {[%clk 0:02:43.5]} 29... Rd1+ {[%clk 0:03:10.5]} 30. Kh2
{[%clk 0:02:35.8]} 30... Rd2 {[%clk 0:03:10.4]} 31. Ra4 {[%clk 0:02:12.4]} 31...
Rxb2 {[%clk 0:03:07]} 32. Kg3 {[%clk 0:02:08.3]} 32... Rb7 {[%clk 0:02:50.5]}
33. Rc4 {[%clk 0:02:03.5]} 33... Rd7 {[%clk 0:02:47.8]} 34. a4 {[%clk 0:02:01]}
34... Rd5 {[%clk 0:02:42.3]} 35. Kf4 {[%clk 0:01:44.7]} 35... Rf5+ {[%clk
0:02:38.8]} 36. Ke3 {[%clk 0:01:40.7]} 36... Ra5 {[%clk 0:02:36.7]} 37. g4
{[%clk 0:01:35.6]} 37... hxg4 {[%clk 0:02:34.5]} 38. hxg4 {[%clk 0:01:34.3]}
38... Kf6 {[%clk 0:02:34.1]} 39. f4 {[%clk 0:01:32.2]} 39... Ke6 {[%clk
0:02:31.2]} 40. f5+ {[%clk 0:01:25.3]} 40... gxf5 {[%clk 0:02:27.6]} 41. g5
{[%clk 0:01:21.9]} 41... Ke5 {[%clk 0:02:18.5]} 42. Rb4 {[%clk 0:01:16.6]} 42...
a6 {[%clk 0:02:13.5]} 43. Kf3 {[%clk 0:01:12.3]} 43... Rc5 {[%clk 0:01:59]} 44.
Rb3 {[%clk 0:01:02.8]} 44... Rc4 {[%clk 0:01:55.5]} 45. a5 {[%clk 0:00:57]}
45... Ra4 {[%clk 0:01:52.9]} 46. Rb7 {[%clk 0:00:53]} 46... Ra3+ {[%clk
0:01:50.8]} 47. Kg2 {[%clk 0:00:48.5]} 47... Rxa5 {[%clk 0:01:49.3]} 48. Rxf7
{[%clk 0:00:46.2]} 48... Rc5 {[%clk 0:01:38.3]} 49. g6 {[%clk 0:00:42]} 49...
Rc6 {[%clk 0:01:37.2]} 50. Rg7 {[%clk 0:00:26.6]} 50... a5 {[%clk 0:01:29.1]}
51. Kf3 {[%clk 0:00:20.6]} 51... a4 {[%clk 0:01:16.8]} 52. Ra7 {[%clk
0:00:18.7]} 52... Rxg6 {[%clk 0:01:14.1]} 53. Rxa4 {[%clk 0:00:17.5]} 53... Rd6
{[%clk 0:01:08.2]} 54. Ra5+ {[%clk 0:00:16.5]} 54... Kf6 {[%clk 0:01:07.8]} 55.
Kf4 {[%clk 0:00:15.1]} 55... Rd4+ {[%clk 0:01:06.6]} 56. Ke3 {[%clk 0:00:14.1]}
56... Rb4 {[%clk 0:01:06.3]} 57. Rc5 {[%clk 0:00:11.3]} 57... Kg5 {[%clk
0:01:04]} 58. Kf3 {[%clk 0:00:10.2]} 58... Rb3+ {[%clk 0:01:02.1]} 59. Kg2
{[%clk 0:00:08.2]} 59... Kg4 {[%clk 0:01:01]} 60. Kf2 {[%clk 0:00:04.4]} 60...
f4 {[%clk 0:00:59.2]} 61. Rc4 {[%clk 0:00:01.4]} 61... Rb2+ {[%clk 0:00:57.9]}
0-1